[Event "Titled Tuesday Blitz May 4 2021"]
[White "Csonka, Balazs"]
[Black "Shapiro, David"]
[WhiteFideId "742910"]
[BlackFideId "24133523"]
[WhiteElo "2404"]
[BlackElo "2261"]
[Result "0-1"]
[Round "11"]
[TimeControl "180+1"]
[Date "2021.05.04"]
[WhiteClock "0:00:01"]
[BlackClock "0:00:29"]

1. e4 {[%clk 0:03:00]}  c6 {[%clk 0:02:59]} 2. Nc3 {[%clk 0:02:54]}  d5 {[%clk 0:02:59]} 3. Nf3 {[%clk 0:02:55]}  Bg4 {[%clk 0:02:58]} 4. h3 {[%clk 0:02:53]}  Bh5 {[%clk 0:02:59]} 5. exd5 {[%clk 0:02:50]}  cxd5 {[%clk 0:03:00]} 6. g4 {[%clk 0:02:50]}  Bg6 {[%clk 0:02:59]} 7. Bb5+ {[%clk 0:02:51]}  Nc6 {[%clk 0:03:00]} 8. Ne5 {[%clk 0:02:51]}  Rc8 {[%clk 0:02:59]} 9. d4 {[%clk 0:02:50]}  e6 {[%clk 0:02:59]} 10. Qe2 {[%clk 0:02:45]}  Bd6 {[%clk 0:02:59]} 11. Nxg6 {[%clk 0:02:41]}  hxg6 {[%clk 0:03:00]} 12. Nxd5 {[%clk 0:02:40]}  Kf8 {[%clk 0:03:01]} 13. Bxc6 {[%clk 0:02:30]}  Rxc6 {[%clk 0:03:02]} 14. Nc3 {[%clk 0:01:44]}  Bb4 {[%clk 0:03:01]} 15. Bd2 {[%clk 0:01:45]}  Qxd4 {[%clk 0:02:54]} 16. O-O-O {[%clk 0:01:45]}  Qc4 {[%clk 0:02:54]} 17. Bg5 {[%clk 0:01:01]}  Be7 {[%clk 0:02:35]} 18. Bxe7+ {[%clk 0:00:35]}  Kxe7 {[%clk 0:02:36]} 19. Qe3 {[%clk 0:00:35]}  Qc5 {[%clk 0:02:17]} 20. Nd5+ {[%clk 0:00:28]}  Kf8 {[%clk 0:02:15]} 21. Qxc5+ {[%clk 0:00:16]}  Rxc5 {[%clk 0:02:16]} 22. Nc3 {[%clk 0:00:10]}  Ke7 {[%clk 0:02:15]} 23. Rd3 {[%clk 0:00:10]}  Nf6 {[%clk 0:02:15]} 24. Rhd1 {[%clk 0:00:10]}  g5 {[%clk 0:02:12]} 25. b3 {[%clk 0:00:09]}  Rhc8 {[%clk 0:02:09]} 26. Kb2 {[%clk 0:00:10]}  b5 {[%clk 0:02:02]} 27. a3 {[%clk 0:00:08]}  a5 {[%clk 0:02:01]} 28. R1d2 {[%clk 0:00:08]}  b4 {[%clk 0:01:56]} 29. axb4 {[%clk 0:00:09]}  axb4 {[%clk 0:01:56]} 30. Na4 {[%clk 0:00:05]}  R5c6 {[%clk 0:01:50]} 31. c4 {[%clk 0:00:05]}  bxc3+ {[%clk 0:01:47]} 32. Nxc3 {[%clk 0:00:03]}  Rb8 {[%clk 0:01:41]} 33. f3 {[%clk 0:00:02]}  Rc7 {[%clk 0:01:37]} 34. Ne4 {[%clk 0:00:02]}  Nxe4 {[%clk 0:01:30]} 35. fxe4 {[%clk 0:00:03]}  Kf6 {[%clk 0:01:23]} 36. Rc3 {[%clk 0:00:01]}  Rxc3 {[%clk 0:01:20]} 37. Kxc3 {[%clk 0:00:02]}  Ke5 {[%clk 0:01:19]} 38. Re2 {[%clk 0:00:03]}  Rh8 {[%clk 0:01:17]} 39. Re3 {[%clk 0:00:02]}  Kf4 {[%clk 0:01:18]} 40. Rd3 {[%clk 0:00:01]}  Kxe4 {[%clk 0:01:18]} 41. b4 {[%clk 0:00:02]}  Rc8+ {[%clk 0:01:16]} 42. Kd2 {[%clk 0:00:02]}  Rb8 {[%clk 0:01:00]} 43. Rd7 {[%clk 0:00:02]}  f6 {[%clk 0:00:54]} 44. Rxg7 {[%clk 0:00:02]}  Rxb4 {[%clk 0:00:53]} 45. Rg6 {[%clk 0:00:02]}  Ke5 {[%clk 0:00:52]} 46. Ke2 {[%clk 0:00:01]}  Rb3 {[%clk 0:00:49]} 47. Rh6 {[%clk 0:00:02]}  f5 {[%clk 0:00:45]} 48. Kf2 {[%clk 0:00:02]}  f4 {[%clk 0:00:34]} 49. Rg6 {[%clk 0:00:02]}  Rxh3 {[%clk 0:00:31]} 50. Rxg5+ {[%clk 0:00:02]}  Ke4 {[%clk 0:00:31]} 51. Kg2 {[%clk 0:00:01]}  Rg3+ {[%clk 0:00:29]} 52. Kf2 {[%clk 0:00:01]}  Ra3 {[%clk 0:00:29]} 53. Rb5 {[%clk 0:00:01]}  Ra2+ {[%clk 0:00:29]} 54. Kf1 {[%clk 0:00:01]}  Kf3 {[%clk 0:00:29]} 0-1


[Site "https://www.chess.com"]

[Event "Titled Tuesday Blitz May 4 2021"]
[White "Cuevas, Alex"]
[Black "Ivanov, Mike"]
[WhiteFideId "114260"]
[BlackFideId "2613158"]
[WhiteElo "2289"]
[BlackElo "2197"]
[Result "0-1"]
[Round "11"]
[TimeControl "180+1"]
[Date "2021.05.04"]
[WhiteClock "0:00:16"]
[BlackClock "0:00:31"]

1. c4 {[%clk 0:03:00]}  e5 {[%clk 0:02:59]} 2. Nc3 {[%clk 0:03:00]}  Nc6 {[%clk 0:03:00]} 3. Nf3 {[%clk 0:03:00]}  Nf6 {[%clk 0:02:59]} 4. e4 {[%clk 0:02:59]}  Bc5 {[%clk 0:02:56]} 5. Nxe5 {[%clk 0:02:59]}  O-O {[%clk 0:02:56]} 6. Nf3 {[%clk 0:02:38]}  Nxe4 {[%clk 0:02:56]} 7. Nxe4 {[%clk 0:02:36]}  Re8 {[%clk 0:02:56]} 8. Be2 {[%clk 0:02:34]}  Rxe4 {[%clk 0:02:54]} 9. O-O {[%clk 0:02:34]}  Nd4 {[%clk 0:02:50]} 10. Bd3 {[%clk 0:02:27]}  Re6 {[%clk 0:02:41]} 11. b4 {[%clk 0:02:07]}  Qf6 {[%clk 0:02:17]} 12. Rb1 {[%clk 0:01:35]}  Nxf3+ {[%clk 0:02:16]} 13. Qxf3 {[%clk 0:01:36]}  Qxf3 {[%clk 0:02:16]} 14. gxf3 {[%clk 0:01:36]}  Bd4 {[%clk 0:02:14]} 15. Be4 {[%clk 0:01:32]}  c6 {[%clk 0:01:54]} 16. d3 {[%clk 0:01:30]}  d6 {[%clk 0:01:52]} 17. b5 {[%clk 0:01:22]}  Bd7 {[%clk 0:01:52]} 18. bxc6 {[%clk 0:01:21]}  Bxc6 {[%clk 0:01:49]} 19. Be3 {[%clk 0:01:10]}  Bxe3 {[%clk 0:01:31]} 20. fxe3 {[%clk 0:01:10]}  Rae8 {[%clk 0:01:28]} 21. Rf2 {[%clk 0:00:58]}  f5 {[%clk 0:01:19]} 22. Bxc6 {[%clk 0:00:54]}  bxc6 {[%clk 0:01:20]} 23. e4 {[%clk 0:00:55]}  R8e7 {[%clk 0:01:06]} 24. Kf1 {[%clk 0:00:54]}  h6 {[%clk 0:00:52]} 25. Ke2 {[%clk 0:00:54]}  d5 {[%clk 0:00:51]} 26. cxd5 {[%clk 0:00:51]}  cxd5 {[%clk 0:00:52]} 27. Rb5 {[%clk 0:00:43]}  dxe4 {[%clk 0:00:50]} 28. Rxf5 {[%clk 0:00:33]}  e3 {[%clk 0:00:47]} 29. Rf1 {[%clk 0:00:32]}  Rb6 {[%clk 0:00:45]} 30. Rc1 {[%clk 0:00:24]}  Rb2+ {[%clk 0:00:44]} 31. Ke1 {[%clk 0:00:24]}  Rxh2 {[%clk 0:00:43]} 32. Rc8+ {[%clk 0:00:21]}  Kh7 {[%clk 0:00:42]} 33. Rf4 {[%clk 0:00:20]}  Rb7 {[%clk 0:00:37]} 34. Rc1 {[%clk 0:00:16]}  Rbb2 {[%clk 0:00:31]} 0-1


[Site "https://www.chess.com"]

[Event "Titled Tuesday Blitz May 4 2021"]
[White "Cunjalo, Faris"]
[Black "Prithu Gupta"]
[WhiteFideId "14410710"]
[BlackFideId "46618546"]
[WhiteElo "2234"]
[BlackElo "1775"]
[Result "1-0"]
[Round "11"]
[TimeControl "180+1"]
[Date "2021.05.04"]
[WhiteClock "0:00:05"]
[BlackClock "0:00:15"]

1. Nf3 {[%clk 0:03:00]}  Nf6 {[%clk 0:02:56]} 2. c4 {[%clk 0:02:57]}  e6 {[%clk 0:02:52]} 3. Nc3 {[%clk 0:02:56]}  d5 {[%clk 0:02:52]} 4. e3 {[%clk 0:02:57]}  Bd6 {[%clk 0:02:45]} 5. b3 {[%clk 0:02:54]}  b6 {[%clk 0:02:41]} 6. Bb2 {[%clk 0:02:53]}  Bb7 {[%clk 0:02:41]} 7. g3 {[%clk 0:02:50]}  a6 {[%clk 0:02:38]} 8. Bg2 {[%clk 0:02:49]}  Nbd7 {[%clk 0:02:38]} 9. O-O {[%clk 0:02:49]}  O-O {[%clk 0:02:38]} 10. cxd5 {[%clk 0:02:48]}  exd5 {[%clk 0:02:38]} 11. Rc1 {[%clk 0:02:44]}  Qe7 {[%clk 0:02:36]} 12. Ne2 {[%clk 0:02:35]}  c5 {[%clk 0:02:33]} 13. d4 {[%clk 0:02:35]}  Ne4 {[%clk 0:02:30]} 14. dxc5 {[%clk 0:02:31]}  bxc5 {[%clk 0:02:29]} 15. Nf4 {[%clk 0:02:26]}  Ndf6 {[%clk 0:02:25]} 16. Nd2 {[%clk 0:02:16]}  Rad8 {[%clk 0:02:09]} 17. Nxe4 {[%clk 0:02:13]}  dxe4 {[%clk 0:02:07]} 18. Qc2 {[%clk 0:02:03]}  Ng4 {[%clk 0:02:04]} 19. h3 {[%clk 0:01:48]}  Nf6 {[%clk 0:01:51]} 20. Bxf6 {[%clk 0:01:45]}  gxf6 {[%clk 0:01:48]} 21. Rfd1 {[%clk 0:01:22]}  Bxf4 {[%clk 0:01:38]} 22. gxf4 {[%clk 0:01:13]}  Rxd1+ {[%clk 0:01:33]} 23. Rxd1 {[%clk 0:01:14]}  f5 {[%clk 0:01:28]} 24. Qc3 {[%clk 0:01:10]}  a5 {[%clk 0:01:09]} 25. Kh2 {[%clk 0:01:05]}  f6 {[%clk 0:01:05]} 26. Qxa5 {[%clk 0:00:55]}  Ra8 {[%clk 0:00:43]} 27. Qd2 {[%clk 0:00:52]}  Kf8 {[%clk 0:00:38]} 28. h4 {[%clk 0:00:45]}  Ba6 {[%clk 0:00:20]} 29. Bh3 {[%clk 0:00:28]}  Bd3 {[%clk 0:00:18]} 30. Bxf5 {[%clk 0:00:25]}  Qg7 {[%clk 0:00:19]} 31. Rg1 {[%clk 0:00:25]}  Qh6 {[%clk 0:00:19]} 32. Rg4 {[%clk 0:00:24]}  Qh5 {[%clk 0:00:19]} 33. Be6 {[%clk 0:00:17]}  f5 {[%clk 0:00:19]} 34. Rg5 {[%clk 0:00:07]}  Qxh4+ {[%clk 0:00:20]} 35. Kg2 {[%clk 0:00:07]}  h6 {[%clk 0:00:16]} 36. Rg3 {[%clk 0:00:06]}  Ke7 {[%clk 0:00:15]} 37. Bxf5 {[%clk 0:00:06]}  Kf6 {[%clk 0:00:15]} 38. Qc3+ {[%clk 0:00:05]}  Kxf5 {[%clk 0:00:15]} 39. Qe5# {[%clk 0:00:05]} 1-0


[Site "https://www.chess.com"]

[Event "Titled Tuesday Blitz May 4 2021"]
[White "Daulyte-Cornette, Deimante"]
[Black "Yeremyan, Alen"]
[WhiteFideId "12802859"]
[BlackFideId "13308998"]
[WhiteElo "2285"]
[BlackElo "2158"]
[Result "1-0"]
[Round "11"]
[TimeControl "180+1"]
[Date "2021.05.04"]
[WhiteClock "0:00:06"]
[BlackClock "0:00:39"]

1. e4 {[%clk 0:03:00]}  Nf6 {[%clk 0:02:55]} 2. e5 {[%clk 0:02:59]}  Nd5 {[%clk 0:02:55]} 3. d4 {[%clk 0:02:59]}  d6 {[%clk 0:02:54]} 4. c4 {[%clk 0:02:59]}  Nb6 {[%clk 0:02:52]} 5. exd6 {[%clk 0:02:59]}  cxd6 {[%clk 0:02:53]} 6. Nc3 {[%clk 0:02:58]}  g6 {[%clk 0:02:54]} 7. h3 {[%clk 0:02:58]}  Bg7 {[%clk 0:02:53]} 8. Nf3 {[%clk 0:02:58]}  O-O {[%clk 0:02:54]} 9. Be2 {[%clk 0:02:58]}  Bf5 {[%clk 0:02:55]} 10. O-O {[%clk 0:02:58]}  d5 {[%clk 0:02:55]} 11. c5 {[%clk 0:02:50]}  Nc8 {[%clk 0:02:55]} 12. Qb3 {[%clk 0:02:31]}  Qd7 {[%clk 0:02:22]} 13. Qxd5 {[%clk 0:02:25]}  Rd8 {[%clk 0:02:16]} 14. Qxd7 {[%clk 0:02:21]}  Rxd7 {[%clk 0:02:17]} 15. Be3 {[%clk 0:02:18]}  Nc6 {[%clk 0:02:17]} 16. Rad1 {[%clk 0:02:00]}  Nb4 {[%clk 0:02:16]} 17. Ne5 {[%clk 0:01:44]}  Rd8 {[%clk 0:02:14]} 18. g4 {[%clk 0:01:44]}  Be6 {[%clk 0:02:13]} 19. a3 {[%clk 0:01:39]}  Nd5 {[%clk 0:02:14]} 20. Nxd5 {[%clk 0:01:38]}  Bxd5 {[%clk 0:02:15]} 21. f4 {[%clk 0:01:34]}  a6 {[%clk 0:02:12]} 22. Bf3 {[%clk 0:01:29]}  Na7 {[%clk 0:02:12]} 23. Bxd5 {[%clk 0:01:20]}  Rxd5 {[%clk 0:02:12]} 24. Nc4 {[%clk 0:00:51]}  Re8 {[%clk 0:02:05]} 25. Nb6 {[%clk 0:00:50]}  Rdd8 {[%clk 0:02:06]} 26. Rd2 {[%clk 0:00:35]}  e6 {[%clk 0:02:05]} 27. Nc4 {[%clk 0:00:31]}  Nb5 {[%clk 0:02:02]} 28. Rfd1 {[%clk 0:00:28]}  Bf8 {[%clk 0:01:59]} 29. a4 {[%clk 0:00:21]}  Nc7 {[%clk 0:02:00]} 30. Nb6 {[%clk 0:00:21]}  Nd5 {[%clk 0:02:00]} 31. Nxd5 {[%clk 0:00:20]}  exd5 {[%clk 0:01:55]} 32. Kf2 {[%clk 0:00:20]}  Re4 {[%clk 0:01:55]} 33. b4 {[%clk 0:00:20]}  Rde8 {[%clk 0:01:54]} 34. Rd3 {[%clk 0:00:19]}  Be7 {[%clk 0:01:53]} 35. Kf3 {[%clk 0:00:19]}  f5 {[%clk 0:01:38]} 36. g5 {[%clk 0:00:18]}  h6 {[%clk 0:01:38]} 37. h4 {[%clk 0:00:17]}  Kf7 {[%clk 0:01:38]} 38. Ra1 {[%clk 0:00:14]}  hxg5 {[%clk 0:01:38]} 39. hxg5 {[%clk 0:00:14]}  Rh8 {[%clk 0:01:38]} 40. Rg1 {[%clk 0:00:07]}  Rh3+ {[%clk 0:01:36]} 41. Rg3 {[%clk 0:00:07]}  Rh1 {[%clk 0:01:36]} 42. b5 {[%clk 0:00:07]}  axb5 {[%clk 0:01:34]} 43. axb5 {[%clk 0:00:07]}  Rb1 {[%clk 0:01:35]} 44. b6 {[%clk 0:00:07]}  Kg7 {[%clk 0:01:27]} 45. Rh3 {[%clk 0:00:07]}  Rf1+ {[%clk 0:01:26]} 46. Kg2 {[%clk 0:00:05]}  Re1 {[%clk 0:01:22]} 47. Ra3 {[%clk 0:00:05]}  Kf7 {[%clk 0:01:10]} 48. Kf2 {[%clk 0:00:05]}  Rb1 {[%clk 0:01:09]} 49. Ra7 {[%clk 0:00:05]}  Rb2+ {[%clk 0:01:10]} 50. Kf3 {[%clk 0:00:05]}  Rb3 {[%clk 0:01:02]} 51. Ke2 {[%clk 0:00:06]}  Rb2+ {[%clk 0:00:57]} 52. Kd3 {[%clk 0:00:05]}  Rb3+ {[%clk 0:00:57]} 53. Kd2 {[%clk 0:00:06]}  Rb2+ {[%clk 0:00:57]} 54. Kc3 {[%clk 0:00:06]}  Re2 {[%clk 0:00:58]} 55. Rxb7 {[%clk 0:00:06]}  Ke6 {[%clk 0:00:52]} 56. Rxe7+ {[%clk 0:00:03]}  Kxe7 {[%clk 0:00:48]} 57. b7 {[%clk 0:00:04]}  R4xe3+ {[%clk 0:00:46]} 58. Rxe3+ {[%clk 0:00:05]}  Rxe3+ {[%clk 0:00:47]} 59. Kb4 {[%clk 0:00:04]}  Re1 {[%clk 0:00:47]} 60. c6 {[%clk 0:00:03]}  Rb1+ {[%clk 0:00:45]} 61. Kc5 {[%clk 0:00:03]}  Kd8 {[%clk 0:00:44]} 62. Kd6 {[%clk 0:00:04]}  Rb6 {[%clk 0:00:45]} 63. Kc5 {[%clk 0:00:03]}  Kc7 {[%clk 0:00:45]} 64. Kxd5 {[%clk 0:00:03]}  Rb5+ {[%clk 0:00:45]} 65. Kc4 {[%clk 0:00:03]}  Rb1 {[%clk 0:00:40]} 66. d5 {[%clk 0:00:04]}  Rc1+ {[%clk 0:00:40]} 67. Kd4 {[%clk 0:00:04]}  Rd1+ {[%clk 0:00:41]} 68. Ke5 {[%clk 0:00:04]}  Rd2 {[%clk 0:00:40]} 69. d6+ {[%clk 0:00:04]}  Kb8 {[%clk 0:00:38]} 70. Ke6 {[%clk 0:00:04]}  Re2+ {[%clk 0:00:37]} 71. Kd7 {[%clk 0:00:04]}  Rc2 {[%clk 0:00:37]} 72. c7+ {[%clk 0:00:04]}  Kxb7 {[%clk 0:00:38]} 73. Kd8 {[%clk 0:00:04]}  Rc6 {[%clk 0:00:37]} 74. Ke7 {[%clk 0:00:03]}  Kb6 {[%clk 0:00:35]} 75. Ke6 {[%clk 0:00:02]}  Kc5 {[%clk 0:00:33]} 76. c8=Q {[%clk 0:00:02]}  Rxc8 {[%clk 0:00:33]} 77. d7 {[%clk 0:00:03]}  Ra8 {[%clk 0:00:32]} 78. Ke7 {[%clk 0:00:03]}  Kd5 {[%clk 0:00:32]} 79. d8=Q+ {[%clk 0:00:03]}  Rxd8 {[%clk 0:00:33]} 80. Kxd8 {[%clk 0:00:03]}  Ke4 {[%clk 0:00:34]} 81. Ke7 {[%clk 0:00:04]}  Kxf4 {[%clk 0:00:35]} 82. Kf6 {[%clk 0:00:04]}  Ke3 {[%clk 0:00:34]} 83. Kxg6 {[%clk 0:00:05]}  f4 {[%clk 0:00:35]} 84. Kh7 {[%clk 0:00:04]}  f3 {[%clk 0:00:36]} 85. g6 {[%clk 0:00:05]}  f2 {[%clk 0:00:37]} 86. g7 {[%clk 0:00:06]}  f1=Q {[%clk 0:00:37]} 87. g8=Q {[%clk 0:00:06]}  Qh3+ {[%clk 0:00:38]} 88. Kg7 {[%clk 0:00:07]}  Qg4+ {[%clk 0:00:38]} 89. Kf8 {[%clk 0:00:06]}  Qc4 {[%clk 0:00:39]} 90. Qxc4 {[%clk 0:00:06]} 1-0


[Site "https://www.chess.com"]

[Event "Titled Tuesday Blitz May 4 2021"]
[White "Deac, Bogdan-Daniel"]
[Black "Indjic, Aleksandar"]
[WhiteFideId "1226380"]
[BlackFideId "911925"]
[WhiteElo "2605"]
[BlackElo "2591"]
[Result "1-0"]
[Round "11"]
[TimeControl "180+1"]
[Date "2021.05.04"]
[WhiteClock "0:00:18"]
[BlackClock "0:00:54"]

1. e4 {[%clk 0:03:00]}  c5 {[%clk 0:02:56]} 2. Nf3 {[%clk 0:03:00]}  e6 {[%clk 0:02:56]} 3. g3 {[%clk 0:02:58]}  Nc6 {[%clk 0:02:52]} 4. Bg2 {[%clk 0:02:58]}  Nf6 {[%clk 0:02:52]} 5. Qe2 {[%clk 0:02:57]}  Be7 {[%clk 0:02:50]} 6. e5 {[%clk 0:02:52]}  Nd5 {[%clk 0:02:49]} 7. O-O {[%clk 0:02:52]}  O-O {[%clk 0:02:48]} 8. Rd1 {[%clk 0:02:49]}  d6 {[%clk 0:02:44]} 9. exd6 {[%clk 0:02:46]}  Qxd6 {[%clk 0:02:28]} 10. d4 {[%clk 0:02:44]}  cxd4 {[%clk 0:02:26]} 11. Nxd4 {[%clk 0:02:44]}  Nxd4 {[%clk 0:02:23]} 12. Rxd4 {[%clk 0:02:43]}  Qc5 {[%clk 0:02:18]} 13. Rc4 {[%clk 0:02:26]}  Qd6 {[%clk 0:02:12]} 14. Nc3 {[%clk 0:02:25]}  Nxc3 {[%clk 0:01:47]} 15. Rxc3 {[%clk 0:02:23]}  Bf6 {[%clk 0:01:47]} 16. Bf4 {[%clk 0:02:06]}  e5 {[%clk 0:01:36]} 17. Rd1 {[%clk 0:02:01]}  Qe6 {[%clk 0:01:34]} 18. Bd5 {[%clk 0:01:22]}  Qg4 {[%clk 0:01:33]} 19. f3 {[%clk 0:01:20]}  Qf5 {[%clk 0:01:23]} 20. Be3 {[%clk 0:01:13]}  h5 {[%clk 0:01:06]} 21. Rc7 {[%clk 0:00:58]}  a5 {[%clk 0:00:58]} 22. Bc5 {[%clk 0:00:30]}  Bd8 {[%clk 0:00:58]} 23. Rxf7 {[%clk 0:00:18]}  Rxf7 {[%clk 0:00:55]} 24. Bxf7+ {[%clk 0:00:18]}  Kxf7 {[%clk 0:00:55]} 25. Rxd8 {[%clk 0:00:19]}  b6 {[%clk 0:00:55]} 26. Rf8+ {[%clk 0:00:19]}  Kg6 {[%clk 0:00:54]} 27. Rxf5 {[%clk 0:00:18]} 1-0


[Site "https://www.chess.com"]

[Event "Titled Tuesday Blitz May 4 2021"]
[White "Degtiarev, Evgeny"]
[Black "Janaszak, Dawid"]
[WhiteFideId "4149610"]
[BlackFideId "1119206"]
[WhiteElo "2218"]
[BlackElo "2332"]
[Result "1/2-1/2"]
[Round "11"]
[TimeControl "180+1"]
[Date "2021.05.04"]
[WhiteClock "0:01:00"]
[BlackClock "0:01:42"]

1. d4 {[%clk 0:02:12]}  c6 {[%clk 0:03:00]} 2. c4 {[%clk 0:02:09]}  d5 {[%clk 0:03:00]} 3. Nc3 {[%clk 0:02:09]}  Nf6 {[%clk 0:02:59]} 4. Nf3 {[%clk 0:02:08]}  e6 {[%clk 0:02:59]} 5. e3 {[%clk 0:02:08]}  Nbd7 {[%clk 0:02:57]} 6. Bd3 {[%clk 0:02:08]}  Bd6 {[%clk 0:02:54]} 7. O-O {[%clk 0:02:07]}  O-O {[%clk 0:02:50]} 8. b3 {[%clk 0:02:05]}  b6 {[%clk 0:02:47]} 9. Bb2 {[%clk 0:02:03]}  Bb7 {[%clk 0:02:47]} 10. Qe2 {[%clk 0:02:00]}  Re8 {[%clk 0:02:30]} 11. e4 {[%clk 0:01:54]}  dxe4 {[%clk 0:02:29]} 12. Nxe4 {[%clk 0:01:55]}  Nxe4 {[%clk 0:02:30]} 13. Qxe4 {[%clk 0:01:56]}  Nf6 {[%clk 0:02:30]} 14. Qh4 {[%clk 0:01:53]}  h6 {[%clk 0:01:49]} 15. Rad1 {[%clk 0:01:32]}  Nh7 {[%clk 0:01:45]} 16. Qe4 {[%clk 0:01:17]}  Nf6 {[%clk 0:01:43]} 17. Qh4 {[%clk 0:01:17]}  Nh7 {[%clk 0:01:43]} 18. Qe4 {[%clk 0:01:00]}  Nf6 {[%clk 0:01:42]} 19. Qh4 {[%clk 0:01:00]} 1/2-1/2


[Site "https://www.chess.com"]

[Event "Titled Tuesday Blitz May 4 2021"]
[White "Eggleston, Thomas A"]
[Black "Kubatko, Ivan"]
[WhiteFideId "412139"]
[BlackFideId "24111473"]
[WhiteElo "2174"]
[BlackElo "2285"]
[Result "0-1"]
[Round "11"]
[TimeControl "180+1"]
[Date "2021.05.04"]
[WhiteClock "0:00:01"]
[BlackClock "0:00:03"]

1. e4 {[%clk 0:03:00]}  d5 {[%clk 0:03:00]} 2. exd5 {[%clk 0:03:00]}  Qxd5 {[%clk 0:03:00]} 3. Nc3 {[%clk 0:03:01]}  Qa5 {[%clk 0:03:00]} 4. d4 {[%clk 0:03:01]}  Nf6 {[%clk 0:03:00]} 5. Bc4 {[%clk 0:03:01]}  Nc6 {[%clk 0:03:00]} 6. Nf3 {[%clk 0:03:00]}  Bg4 {[%clk 0:02:59]} 7. Bd2 {[%clk 0:02:58]}  O-O-O {[%clk 0:02:59]} 8. Nd5 {[%clk 0:02:49]}  Qa4 {[%clk 0:02:59]} 9. Bb3 {[%clk 0:02:25]}  Qa6 {[%clk 0:02:58]} 10. Nxf6 {[%clk 0:01:41]}  gxf6 {[%clk 0:02:59]} 11. c3 {[%clk 0:01:42]}  e5 {[%clk 0:02:57]} 12. h3 {[%clk 0:01:35]}  Bh5 {[%clk 0:02:41]} 13. d5 {[%clk 0:01:34]}  Ne7 {[%clk 0:01:55]} 14. g4 {[%clk 0:01:31]}  Bg6 {[%clk 0:01:54]} 15. c4 {[%clk 0:01:23]}  c6 {[%clk 0:01:36]} 16. Qe2 {[%clk 0:01:10]}  cxd5 {[%clk 0:01:33]} 17. cxd5 {[%clk 0:01:08]}  Bd3 {[%clk 0:01:18]} 18. Rc1+ {[%clk 0:01:04]}  Kb8 {[%clk 0:01:18]} 19. Qe3 {[%clk 0:00:56]}  Nxd5 {[%clk 0:01:17]} 20. Bxd5 {[%clk 0:00:46]}  Rxd5 {[%clk 0:01:18]} 21. Nh4 {[%clk 0:00:25]}  Be7 {[%clk 0:00:53]} 22. a3 {[%clk 0:00:21]}  Rhd8 {[%clk 0:00:50]} 23. Bc3 {[%clk 0:00:18]}  Bc5 {[%clk 0:00:46]} 24. Qf3 {[%clk 0:00:17]}  Qc4 {[%clk 0:00:26]} 25. Bd2 {[%clk 0:00:07]}  Qe4+ {[%clk 0:00:16]} 26. Be3 {[%clk 0:00:04]}  Bxe3 {[%clk 0:00:09]} 27. fxe3 {[%clk 0:00:03]}  Qxf3 {[%clk 0:00:07]} 28. Nxf3 {[%clk 0:00:03]}  Be4 {[%clk 0:00:07]} 29. Ke2 {[%clk 0:00:03]}  a6 {[%clk 0:00:03]} 30. Rhe1 {[%clk 0:00:02]}  Bd3+ {[%clk 0:00:03]} 31. Kf2 {[%clk 0:00:02]}  Be4 {[%clk 0:00:03]} 32. Kg3 {[%clk 0:00:02]}  Rd3 {[%clk 0:00:03]} 33. Nh4 {[%clk 0:00:02]}  Rd2 {[%clk 0:00:02]} 34. Rf1 {[%clk 0:00:02]}  R8d6 {[%clk 0:00:03]} 35. Rfe1 {[%clk 0:00:01]}  Rxb2 {[%clk 0:00:03]} 36. Rf1 {[%clk 0:00:01]}  Rb3 {[%clk 0:00:03]} 0-1


[Site "https://www.chess.com"]

[Event "Titled Tuesday Blitz May 4 2021"]
[White "Elissalt Cardenas, Hector"]
[Black "Jian, Alex"]
[WhiteFideId "3500632"]
[BlackFideId "30901022"]
[WhiteElo "2223"]
[BlackElo "2084"]
[Result "0-1"]
[Round "11"]
[TimeControl "180+1"]
[Date "2021.05.04"]
[WhiteClock "0:00:45"]
[BlackClock "0:02:04"]

1. d4 {[%clk 0:01:26]}  Nf6 {[%clk 0:02:40]} 2. c4 {[%clk 0:01:25]}  e6 {[%clk 0:02:41]} 3. Nc3 {[%clk 0:01:26]}  d5 {[%clk 0:02:40]} 4. cxd5 {[%clk 0:01:25]}  Nxd5 {[%clk 0:02:40]} 5. e4 {[%clk 0:01:23]}  Nxc3 {[%clk 0:02:40]} 6. bxc3 {[%clk 0:01:24]}  c5 {[%clk 0:02:41]} 7. Nf3 {[%clk 0:01:24]}  cxd4 {[%clk 0:02:41]} 8. cxd4 {[%clk 0:01:23]}  Bb4+ {[%clk 0:02:41]} 9. Bd2 {[%clk 0:01:23]}  Bxd2+ {[%clk 0:02:42]} 10. Qxd2 {[%clk 0:01:23]}  O-O {[%clk 0:02:43]} 11. Bc4 {[%clk 0:01:23]}  Nc6 {[%clk 0:02:42]} 12. O-O {[%clk 0:01:23]}  b6 {[%clk 0:02:41]} 13. a4 {[%clk 0:01:19]}  Bb7 {[%clk 0:02:41]} 14. Rfb1 {[%clk 0:01:14]}  Rc8 {[%clk 0:02:36]} 15. Bd3 {[%clk 0:01:13]}  Nxd4 {[%clk 0:02:26]} 16. Ne5 {[%clk 0:00:49]}  Qd6 {[%clk 0:02:09]} 17. Nc4 {[%clk 0:00:45]}  Rxc4 {[%clk 0:02:04]} 0-1


[Site "https://www.chess.com"]

[Event "Titled Tuesday Blitz May 4 2021"]
[White "Escobar Forero, Alder"]
[Black "Avila Pavas, Santiago"]
[WhiteFideId "4400801"]
[BlackFideId "4437128"]
[WhiteElo "2513"]
[BlackElo "2244"]
[Result "1-0"]
[Round "11"]
[TimeControl "180+1"]
[Date "2021.05.04"]
[WhiteClock "0:00:07"]
[BlackClock "0:00:02"]

1. d4 {[%clk 0:03:00]}  Nf6 {[%clk 0:03:00]} 2. Nc3 {[%clk 0:03:01]}  d5 {[%clk 0:03:00]} 3. Bg5 {[%clk 0:02:59]}  Nbd7 {[%clk 0:02:56]} 4. g3 {[%clk 0:02:57]}  g6 {[%clk 0:02:54]} 5. Bg2 {[%clk 0:02:55]}  c6 {[%clk 0:02:54]} 6. e4 {[%clk 0:02:53]}  dxe4 {[%clk 0:02:54]} 7. Nxe4 {[%clk 0:02:53]}  Bg7 {[%clk 0:02:55]} 8. Nxf6+ {[%clk 0:02:51]}  Nxf6 {[%clk 0:02:56]} 9. Nf3 {[%clk 0:02:51]}  O-O {[%clk 0:02:57]} 10. O-O {[%clk 0:02:51]}  Bg4 {[%clk 0:02:53]} 11. c3 {[%clk 0:02:46]}  h6 {[%clk 0:02:45]} 12. Bd2 {[%clk 0:02:36]}  Nd5 {[%clk 0:02:33]} 13. Re1 {[%clk 0:02:33]}  e6 {[%clk 0:02:30]} 14. h3 {[%clk 0:02:27]}  Bxf3 {[%clk 0:02:29]} 15. Qxf3 {[%clk 0:02:26]}  Qb6 {[%clk 0:02:18]} 16. Rab1 {[%clk 0:02:18]}  Rfd8 {[%clk 0:02:11]} 17. h4 {[%clk 0:02:14]}  c5 {[%clk 0:02:00]} 18. c4 {[%clk 0:01:45]}  Nf6 {[%clk 0:01:45]} 19. dxc5 {[%clk 0:01:30]}  Qxc5 {[%clk 0:01:46]} 20. Be3 {[%clk 0:01:00]}  Qxc4 {[%clk 0:01:44]} 21. Qxb7 {[%clk 0:01:00]}  Rab8 {[%clk 0:01:28]} 22. Qxa7 {[%clk 0:00:56]}  Ng4 {[%clk 0:01:28]} 23. Bb6 {[%clk 0:00:43]}  Rxb6 {[%clk 0:01:02]} 24. Qxb6 {[%clk 0:00:41]}  Rd2 {[%clk 0:01:03]} 25. Re4 {[%clk 0:00:28]}  Bd4 {[%clk 0:00:44]} 26. Qb8+ {[%clk 0:00:25]}  Kg7 {[%clk 0:00:43]} 27. Rxd4 {[%clk 0:00:16]}  Qxd4 {[%clk 0:00:44]} 28. Qf4 {[%clk 0:00:15]}  Qxf4 {[%clk 0:00:14]} 29. gxf4 {[%clk 0:00:16]}  Nxf2 {[%clk 0:00:15]} 30. a4 {[%clk 0:00:15]}  Nd3 {[%clk 0:00:15]} 31. a5 {[%clk 0:00:14]}  Nxf4 {[%clk 0:00:15]} 32. Bb7 {[%clk 0:00:13]}  Rd4 {[%clk 0:00:02]} 33. b4 {[%clk 0:00:12]}  Rd2 {[%clk 0:00:02]} 34. Ra1 {[%clk 0:00:10]}  e5 {[%clk 0:00:01]} 35. a6 {[%clk 0:00:10]}  f5 {[%clk 0:00:02]} 36. a7 {[%clk 0:00:10]}  e4 {[%clk 0:00:03]} 37. a8=Q {[%clk 0:00:10]}  Ne2+ {[%clk 0:00:03]} 38. Kf2 {[%clk 0:00:08]}  Nd4+ {[%clk 0:00:02]} 39. Ke3 {[%clk 0:00:06]}  Rd3+ {[%clk 0:00:02]} 40. Kf4 {[%clk 0:00:07]} 1-0


[Site "https://www.chess.com"]